[Event "IIFL Wealth  4th Mumbai Junior U-13"]
[Site "Mumbai"]
[Date "2019.01.01"]
[Round "3"]
[White "Kshatriya Nitin Vekhande"]
[Black "Aarna Chugh"]
[Result "1-0"]
[ECO "B41"]
[WhiteElo "1544"]
[BlackElo "1164"]
[Annotator "NA RC"]
[PlyCount "127"]
[EventDate "2018.12.30"]
[EventType "swiss"]
[EventCountry "IND"]
[SourceTitle "playchess.com"]
[Source "ChessBase"]
[SourceQuality "1"]
[TimeControl "40/5400+30:1800+30"]

1. e4 {[%emt 0:00:00]} c5 {[%emt 0:00:00]} 2. Nf3 {[%emt 0:00:00]} e6 {[%emt 0:00:00]} 3. d4 {[%emt 0:00:00]} cxd4 {[%emt 0:00:00]} 4. Nxd4 {[%emt 0:00:00]} a6 {[%emt 0:00:04]} 5. Be2 {[%emt 0:00:07]} Qc7 {[%emt 0:00:10]} 6. Be3 {[%emt 0:00:39]} Nf6 {[%emt 0:00:15]} 7. f3 {[%emt 0:00:51]} d6 {[%emt 0:01:29]} 8. c4 {[%emt 0:00:18]} b6 {[%emt 0:02:21]} 9. Nc3 {[%emt 0:00:55]} Bb7 {[%emt 0:04:28]} 10. O-O {[%emt 0:01:27]} g6 {[%emt 0:05:31]} 11. Kh1 {[%emt 0:11:50]} Bg7 {[%emt 0:09:05]} 12. Rc1 {[%emt 0:00:45]} Nbd7 {[%emt 0:05:16]} 13. Qd2 {[%emt 0:12:25]} O-O {[%emt 0:10:41]} 14. Bh6 {[%emt 0:01:08]} Rac8 {[%emt 0:01:52]} 15. Bxg7 {[%emt 0:01:14]} Kxg7 {[%emt 0:00:34]} 16. b3 {[%emt 0:00:37]} Ne5 {[%emt 0:08:16]} 17. f4 {[%emt 0:01:53]} Ned7 {[%emt 0:01:55]} 18. Bf3 {[%emt 0:02:08]} Nc5 {[%emt 0:02:33]} 19. Rce1 {[%emt 0:04:47]} Rfd8 {[%emt 0:08:30]} 20. f5 {[%emt 0:00:20]} exf5 {[%emt 0:07:30]} 21. Nxf5+ {[%emt 0:01:50]} Kh8 {[%emt 0:03:21]} 22. Qd4 {[%emt 0:01:46]} Ncd7 {[%emt 0:01:58]} 23. Nxd6 {[%emt 0:00:54]} Rf8 {[%emt 0:04:08]} 24. Nxc8 {[%emt 0:01:31]} Bxc8 {[%emt 0:00:52]} 25. e5 {[%emt 0:00:33]} Ng8 {[%emt 0:01:06]} 26. e6+ {[%emt 0:00:36]} Ndf6 {[%emt 0:00:10]} 27. Nd5 {[%emt 0:00:07]} Qd6 {[%emt 0:02:08]} 28. exf7 {[%emt 0:01:13]} Rxf7 {[%emt 0:00:55]} 29. Qxb6 {[%emt 0:00:15]} Qxb6 {[%emt 0:01:35]} 30. Nxb6 {[%emt 0:00:08]} Bf5 {[%emt 0:00:58]} 31. g4 {[%emt 0:00:54]} Bd3 {[%emt 0:01:32]} 32. Be2 {[%emt 0:00:11]} Be4+ {[%emt 0:02:25]} 33. Bf3 {[%emt 0:00:15]} Bd3 {[%emt 0:00:15]} 34. Bd5 {[%emt 0:00:18]} Bxf1 {[%emt 0:02:02]} 35. Bxf7 Bh3 {[%emt 0:00:47]} 36. Bxg8 {[%emt 0:00:27]} Kxg8 {[%emt 0:00:10]} 37. c5 {[%emt 0:00:12]} Bxg4 {[%emt 0:00:31]} 38. Re3 {[%emt 0:00:19]} Kf7 {[%emt 0:00:19]} 39. c6 {[%emt 0:00:05]} g5 {[%emt 0:01:18]} 40. c7 {[%emt 0:00:00]} Ne8 {[%emt 0:00:00]} 41. c8=Q {[%emt 0:00:25]} Bxc8 {[%emt 0:00:23]} 42. Nxc8 {[%emt 0:00:06]} h5 {[%emt 0:00:13]} 43. Re5 {[%emt 0:00:09]} Nf6 {[%emt 0:00:48]} 44. Rxg5 {[%emt 0:00:03]} Ne4 {[%emt 0:00:29]} 45. Rxh5 {[%emt 0:00:07]} Ke6 {[%emt 0:00:06]} 46. Rh6+ {[%emt 0:00:04]} Ke5 {[%emt 0:00:10]} 47. Rxa6 {[%emt 0:00:04]} Kf4 {[%emt 0:00:33]} 48. Ra4 {[%emt 0:00:01]} Kf3 {[%emt 0:00:10]} 49. Rxe4 {[%emt 0:00:02]} Kxe4 {[%emt 0:00:09]} 50. a4 {[%emt 0:00:01]} Kd5 {[%emt 0:00:43]} 51. a5 {[%emt 0:00:04]} Kc6 {[%emt 0:00:08]} 52. b4 {[%emt 0:00:05]} Kb5 {[%emt 0:00:06]} 53. h4 {[%emt 0:00:08]} Ka6 {[%emt 0:00:05]} 54. h5 {[%emt 0:00:04]} Kb7 {[%emt 0:00:11]} 55. h6 {[%emt 0:00:08]} Kxc8 {[%emt 0:00:04]} 56. h7 {[%emt 0:00:08]} Kb7 {[%emt 0:00:04]} 57. h8=Q {[%emt 0:00:11]} Ka6 {[%emt 0:00:08]} 58. Qd4 {[%emt 0:00:08]} Kb7 {[%emt 0:00:10]} 59. Qc5 {[%emt 0:00:05]} Ka8 {[%emt 0:00:04]} 60. a6 {[%emt 0:00:11]} Kb8 {[%emt 0:00:07]} 61. Qb6+ {[%emt 0:00:07]} Kc8 {[%emt 0:00:27]} 62. Qb7+ {[%emt 0:00:07]} Kd8 {[%emt 0:00:09]} 63. a7 {[%emt 0:00:01]} Ke8 {[%emt 0:00:08]} 64. a8=Q# {[%emt 0:00:02]} 1-0

[Event "IIFL Wealth  4th Mumbai Junior U-13"]
[Site "Mumbai"]
[Date "2019.01.01"]
[Round "3"]
[White "Dhanvij Ansh"]
[Black "Zia, Tahsin Tajwar"]
[Result "1-0"]
[ECO "D39"]
[WhiteElo "1523"]
[BlackElo "1925"]
[Annotator "NA RC"]
[PlyCount "127"]
[EventDate "2018.12.30"]
[EventType "swiss"]
[EventCountry "IND"]
[SourceTitle "playchess.com"]
[Source "ChessBase"]
[SourceQuality "1"]
[TimeControl "40/5400+30:1800+30"]

1. d4 {[%emt 0:00:00]} d5 {[%emt 0:00:00]} 2. c4 {[%emt 0:00:00]} e6 {[%emt 0:00:00]} 3. Nc3 {[%emt 0:00:25]} Bb4 {[%emt 0:00:00]} 4. Nf3 {[%emt 0:00:47]} Nf6 {[%emt 0:00:00]} 5. Bg5 {[%emt 0:00:28]} dxc4 {[%emt 0:00:12]} 6. e4 {[%emt 0:00:39]} b5 {[%emt 0:00:07]} 7. a4 {[%emt 0:00:24]} c6 {[%emt 0:01:31]} 8. e5 {[%emt 0:01:47]} h6 {[%emt 0:01:21]} 9. exf6 {[%emt 0:00:53]} hxg5 {[%emt 0:00:10]} 10. fxg7 {[%emt 0:00:07]} Rg8 {[%emt 0:00:17]} 11. g3 {[%emt 0:01:04]} Bb7 {[%emt 0:04:45] D44: Semi-Slav: Botvinnik System} 12. Bg2 $1 {[%emt 0:01:13] LiveBook: 46 Games} Rxg7 {[%emt 0:11:04]} (12... c5 13. O-O g4 14. axb5 gxf3 15. Bxf3 Bxf3 16. Qxf3 Nd7 17. dxc5 Bxc3 18. bxc3 Nxc5 19. Rfd1 Qc8 20. Rd6 Qb7 21. Qh5 Rc8 22. Rc6 Nd3 23. Rxc8+ Qxc8 24. Rxa7 {1-0 (24) Kramnik,V (2766)-Carlsen,M (2690) Monte Carlo 2007}) 13. Ne5 {[%emt 0:07:26]} Qb6 {[%emt 0:02:01]} 14. O-O {[%emt 0:01:16]} a6 {[%emt 0:16:57]} 15. Ne4 {[%emt 0:05:18]} Nd7 $146 {[%emt 0:07:48]} ({Predecessor:} 15... Be7 16. Qh5 Nd7 17. Qh8+ Bf8 18. Nd6+ Ke7 19. axb5 Nxe5 20. dxe5 {1-0 (27) Gulkov,I (2355)-Nakhapetiane,P (2144) Serpukhov 2003}) 16. Qh5 {[%emt 0:06:15]} Nxe5 {[%emt 0:03:53]} (16... Ke7 $142 17. Nxg5 Qxd4 18. Nexf7 Qf6) 17. dxe5 {[%emt 0:00:39]} (17. Qh8+ $18 {is the precise move to win.} Bf8 18. Nd6+ (18. dxe5 O-O-O $16) 18... Kd7 19. dxe5) 17... O-O-O {[%emt 0:00:59]} 18. Nxg5 {[%emt 0:02:07]} Qc7 {[%emt 0:02:11]} 19. Rfd1 {[%emt 0:02:44]} Rdg8 {[%emt 0:05:42]} 20. Ne4 {[%emt 0:01:52]} Be7 {[%emt 0:12:53]} 21. axb5 {[%emt 0:00:58]} axb5 {[%emt 0:01:54]} 22. Nd6+ {[%emt 0:03:15]} Bxd6 {[%emt 0:05:48]} 23. exd6 {[%emt 0:00:34]} Qd7 {[%emt 0:02:08]} 24. Qc5 {[%emt 0:01:31]} f5 {[%emt 0:05:49]} 25. Ra7 {[%emt 0:01:56]} Rd8 {[%emt 0:02:49] [#]} 26. Bxc6 $2 {[%emt 0:02:23]} (26. Rxb7 $1 {[%mdl 512]} Qxb7 (26... Kxb7 27. Ra1) 27. Ra1 Rxd6 28. Qxd6) 26... Qxc6 {[%emt 0:00:44]} 27. Qxc6+ {[%emt 0:00:07]} Bxc6 {[%emt 0:00:02]} 28. Rxg7 {[%emt 0:00:02]} Bd5 {[%emt 0:00:10]} 29. Rc7+ {[%emt 0:01:13]} Kb8 {[%emt 0:00:02]} 30. Rc5 {[%emt 0:00:12]} Rxd6 {[%emt 0:00:27]} 31. Rxb5+ {[%emt 0:00:20]} Kc7 {[%emt 0:00:24]} 32. Rc5+ {[%emt 0:00:44]} Kd7 {[%emt 0:00:02]} 33. h4 {[%emt 0:00:17]} Ke7 {[%emt 0:00:10]} 34. Rc7+ {[%emt 0:04:37]} Kf6 {[%emt 0:00:25]} 35. Rxc4 {[%emt 0:00:41]} Rb6 {[%emt 0:00:01]} 36. Rc8 {[%emt 0:00:57]} Rxb2 {[%emt 0:00:12]} 37. Rc5 {[%emt 0:01:39]} Bf3 {[%emt 0:00:52]} 38. Re1 {[%emt 0:00:10]} Rb6 {[%emt 0:00:29]} 39. Rc3 {[%emt 0:01:19]} Bd5 {[%emt 0:00:15]} 40. f3 {[%emt 0:00:00]} Rb4 {[%emt 0:00:00]} 41. Kf2 {[%emt 0:01:13]} Rb2+ {[%emt 0:03:05]} 42. Re2 {[%emt 0:00:26]} Rb4 {[%emt 0:00:05]} 43. Rd2 {[%emt 0:00:42]} Rb1 {[%emt 0:01:00]} 44. Rc5 {[%emt 0:03:07]} Ke5 {[%emt 0:00:33]} (44... Rb3 {was worth a try.} 45. Rdxd5 exd5 46. Rxd5 Rb2+ 47. Ke3 Rc2) 45. f4+ {[%emt 0:03:03]} Kd6 {[%emt 0:00:35]} (45... Kf6 $142 46. Rc3 Ra1) 46. Rc8 {[%emt 0:00:58]} Kd7 {[%emt 0:00:31]} 47. Rg8 {[%emt 0:00:53]} Rb3 {[%emt 0:00:16]} 48. h5 {[%emt 0:01:13]} Rb1 {[%emt 0:01:58]} 49. h6 {[%emt 0:00:57]} Rh1 {[%emt 0:00:06]} 50. Rg7+ {[%emt 0:00:06]} Kd6 {[%emt 0:00:10]} 51. h7 {[%emt 0:00:09]} Kc5 {[%emt 0:01:12]} 52. Rc2+ {[%emt 0:01:07]} Kd4 {[%emt 0:00:06]} 53. Rc8 $18 {[%emt 0:01:58]} Rh2+ {[%emt 0:01:08]} 54. Ke1 {[%emt 0:00:10]} Rh1+ {[%emt 0:00:13]} 55. Kd2 {[%emt 0:00:16]} Rh2+ {[%emt 0:00:05]} 56. Kc1 {[%emt 0:00:08]} Rh1+ {[%emt 0:00:09]} 57. Kb2 {[%emt 0:00:10]} Rh2+ {[%emt 0:00:13]} 58. Ka3 {[%emt 0:00:31]} Ra2+ {[%emt 0:00:07]} 59. Kb4 {[%emt 0:00:05]} Rb2+ {[%emt 0:00:07]} 60. Ka5 {[%emt 0:00:06]} Ra2+ {[%emt 0:01:30]} 61. Kb6 {[%emt 0:00:32]} Rb2+ {[%emt 0:00:15]} 62. Kc7 {[%emt 0:00:23]} Rb7+ {[%emt 0:00:10]} 63. Kd8 {[%emt 0:00:03]} Rxg7 {[%emt 0:00:07]} 64. h8=Q {[%emt 0:00:06]} 1-0

[Event "IIFL Wealth  4th Mumbai Junior U-13"]
[Site "Mumbai"]
[Date "2019.01.01"]
[Round "3"]
[White "Abhinav Dubey"]
[Black "Thatavarthy Siva Suhas"]
[Result "1-0"]
[ECO "B78"]
[WhiteElo "1497"]
[BlackElo "1173"]
[Annotator "NA RC"]
[PlyCount "93"]
[EventDate "2018.12.30"]
[EventType "swiss"]
[EventCountry "IND"]
[SourceTitle "playchess.com"]
[Source "ChessBase"]
[SourceQuality "1"]
[TimeControl "40/5400+30:1800+30"]

1. e4 {[%emt 0:00:00]} c5 {[%emt 0:01:38]} 2. Nf3 {[%emt 0:00:00]} d6 {[%emt 0:00:32]} 3. d4 {[%emt 0:00:00]} cxd4 {[%emt 0:00:13]} 4. Nxd4 {[%emt 0:00:00]} Nf6 {[%emt 0:00:26]} 5. Nc3 {[%emt 0:00:00]} g6 {[%emt 0:00:12]} 6. Be3 {[%emt 0:00:03]} Bg7 {[%emt 0:00:59]} 7. f3 {[%emt 0:00:08]} O-O {[%emt 0:01:19]} 8. Qd2 {[%emt 0:00:07]} Nc6 {[%emt 0:00:09]} 9. Bc4 {[%emt 0:00:06]} Bd7 {[%emt 0:00:08]} 10. O-O-O {[%emt 0:00:08]} Qa5 {[%emt 0:06:44]} 11. Kb1 {[%emt 0:04:59]} Rfc8 {[%emt 0:02:32]} 12. Bb3 {[%emt 0:00:39]} Ne5 {[%emt 0:01:01]} 13. g4 {[%emt 0:01:17]} b5 {[%emt 0:08:35]} 14. Nd5 {[%emt 0:12:43]} Qxd2 {[%emt 0:02:28]} 15. Rxd2 {[%emt 0:00:14]} Kf8 {[%emt 0:09:11]} 16. h4 {[%emt 0:01:33]} Nc4 {[%emt 0:02:56]} 17. Bxc4 {[%emt 0:00:33]} Rxc4 {[%emt 0:02:29]} 18. Nxf6 {[%emt 0:01:51]} Bxf6 {[%emt 0:01:48]} 19. h5 {[%emt 0:02:58]} Rac8 {[%emt 0:04:13]} 20. Nb3 {[%emt 0:04:39]} R8c7 {[%emt 0:08:05]} 21. Bd4 {[%emt 0:05:59]} Bxd4 {[%emt 0:02:50]} 22. Nxd4 {[%emt 0:00:09]} Kg7 {[%emt 0:02:48]} 23. Nb3 {[%emt 0:00:53]} Be6 {[%emt 0:07:55]} 24. Rdh2 {[%emt 0:01:38]} Rc8 {[%emt 0:02:49]} 25. hxg6 {[%emt 0:01:22]} hxg6 {[%emt 0:01:51]} 26. g5 {[%emt 0:01:13]} Rg8 {[%emt 0:00:39]} 27. c3 {[%emt 0:06:57]} Rcc8 {[%emt 0:06:46]} 28. Nd4 {[%emt 0:00:53]} Bd7 {[%emt 0:00:16]} 29. Rh7+ {[%emt 0:00:49]} Kf8 {[%emt 0:00:08]} 30. f4 {[%emt 0:08:07]} Rc5 {[%emt 0:02:40]} 31. Nf3 {[%emt 0:01:23]} Bg4 {[%emt 0:01:27]} 32. Nd2 {[%emt 0:03:03]} Bh5 {[%emt 0:04:20]} 33. Kc2 {[%emt 0:03:40]} e6 {[%emt 0:05:30]} 34. e5 {[%emt 0:01:21]} d5 {[%emt 0:03:33]} 35. Nb3 {[%emt 0:00:19]} Rc4 {[%emt 0:01:25]} 36. Nd4 {[%emt 0:00:06]} b4 {[%emt 0:00:56]} 37. a3 {[%emt 0:02:17]} bxc3 {[%emt 0:02:28]} 38. bxc3 {[%emt 0:00:08]} Ke7 {[%emt 0:00:16]} 39. Rb1 {[%emt 0:02:21]} Rc7 {[%emt 0:01:26]} 40. f5 {[%emt 0:00:00]} exf5 {[%emt 0:00:00]} 41. e6 {[%emt 0:02:17]} Rf8 {[%emt 0:02:57]} 42. exf7 {[%emt 0:00:10]} Rxf7 {[%emt 0:03:26]} 43. Re1+ {[%emt 0:01:21]} Kd6 {[%emt 0:06:29]} 44. Re6+ {[%emt 0:00:13]} Kc5 {[%emt 0:00:25]} 45. Rxf7 {[%emt 0:00:03]} Rxf7 {[%emt 0:01:12]} 46. Re5 Rc7 47. Re1 1-0

[Event "IIFL Wealth  4th Mumbai Junior U-13"]
[Site "Mumbai"]
[Date "2019.01.01"]
[Round "3"]
[White "Aditya Ramanathan"]
[Black "Savitha Shri B"]
[Result "1/2-1/2"]
[ECO "B22"]
[WhiteElo "1493"]
[BlackElo "1894"]
[Annotator "NA RC"]
[PlyCount "126"]
[EventDate "2018.12.30"]
[EventType "swiss"]
[EventCountry "IND"]
[SourceTitle "playchess.com"]
[Source "ChessBase"]
[SourceQuality "1"]
[TimeControl "40/5400+30:1800+30"]

1. e4 {[%emt 0:00:00]} c5 {[%emt 0:00:00]} 2. c3 {[%emt 0:00:00]} g6 {[%emt 0:00:03]} 3. d4 {[%emt 0:00:00]} cxd4 {[%emt 0:00:05]} 4. cxd4 {[%emt 0:00:00]} Bg7 {[%emt 0:00:15]} 5. Nc3 {[%emt 0:00:00]} d6 {[%emt 0:00:32]} 6. h3 {[%emt 0:00:45]} a6 {[%emt 0:04:01]} 7. Nf3 {[%emt 0:00:19]} b5 {[%emt 0:00:15]} 8. a3 {[%emt 0:01:15]} Bb7 {[%emt 0:00:06]} 9. Bd3 {[%emt 0:01:10]} Nf6 {[%emt 0:04:49]} 10. Be3 {[%emt 0:00:47]} O-O {[%emt 0:03:31]} 11. O-O {[%emt 0:00:06]} (11. Rf1 {[%emt 0:00:06]}) (11. Qd2 $11) 11... Nbd7 {[%emt 0:00:40] E90: King's Indian: Classical: Early deviations and 6 h3} 12. Re1 {[%emt 0:01:38]} (12. Rc1 Rc8 13. Nd2 e5 14. dxe5 Nxe5 15. Bb1 Re8 16. Qe2 d5 17. exd5 Nxd5 18. Nxd5 Bxd5 19. Rxc8 Qxc8 {0-1 (48) Vovk,O (2133)-Prosviriakov,V (2304) Koge 2013}) 12... Rc8 {[%emt 0:01:25]} 13. Rc1 {[%emt 0:00:29]} Nb6 {[%emt 0:10:05]} 14. e5 $146 {[%emt 0:04:39]} (14. Qe2 $11) ({Predecessor:} 14. b3 h6 {½-½ (41) Ludwig,R (1427)-Schmieder,W (1596) Bad Sooden 2011}) 14... Nfd5 {[%emt 0:01:54]} 15. Nxd5 {[%emt 0:00:35]} Nxd5 {[%emt 0:00:08]} 16. Rxc8 Qxc8 {[%emt 0:00:15]} 17. exd6 {[%emt 0:01:47]} exd6 {[%emt 0:00:48]} 18. Be4 {[%emt 0:03:44]} f5 {[%emt 0:02:16]} 19. Bxd5+ {[%emt 0:00:15]} Bxd5 {[%emt 0:00:02]} 20. Bf4 {[%emt 0:01:30]} Qc6 {[%emt 0:01:17]} 21. Re3 {[%emt 0:02:46]} Qb6 {[%emt 0:04:17]} 22. Rd3 {[%emt 0:03:16]} h6 {[%emt 0:04:13]} 23. h4 {[%emt 0:01:18]} Kh7 {[%emt 0:01:34]} 24. Rd2 {[%emt 0:03:52]} Re8 {[%emt 0:02:47]} 25. Nh2 {[%emt 0:08:26]} Re4 {[%emt 0:00:20]} 26. g3 {[%emt 0:01:08]} Rxd4 {[%emt 0:03:16]} 27. Rxd4 {[%emt 0:01:39]} Qxd4 {[%emt 0:00:25]} 28. Qxd4 {[%emt 0:00:31]} Bxd4 {[%emt 0:00:02]} 29. b4 {[%emt 0:01:30]} Bb2 {[%emt 0:00:02]} 30. Bxd6 {[%emt 0:00:26]} Bxa3 {[%emt 0:00:02]} 31. Nf1 {[%emt 0:00:18]} a5 {[%emt 0:00:10]} 32. Ne3 {[%emt 0:00:07]} Be4 {[%emt 0:00:21]} 33. f3 {[%emt 0:01:29]} Bd3 {[%emt 0:04:18]} 34. Nd5 {[%emt 0:00:31]} Bc4 {[%emt 0:00:11]} 35. Nf6+ {[%emt 0:01:52]} Kg7 $2 {[%emt 0:00:54]} ({Black should play} 35... Kh8 $19 36. Be5 axb4 37. Nd7+ Kg8) 36. Ne8+ {[%emt 0:00:09]} (36. bxa5 $11 Bc1 37. Nd7) 36... Kf7 {[%emt 0:08:16]} 37. bxa5 {[%emt 0:00:47]} Bb2 {[%emt 0:01:53]} 38. Nc7 {[%emt 0:01:02]} Bd4+ {[%emt 0:01:05]} 39. Kg2 {[%emt 0:00:20]} g5 {[%emt 0:02:38]} 40. hxg5 {[%emt 0:00:00]} hxg5 {[%emt 0:00:00]} 41. a6 {[%emt 0:01:10]} Bb6 {[%emt 0:02:24]} 42. Na8 {[%emt 0:00:54]} Ba7 {[%emt 0:04:22]} 43. Nc7 {[%emt 0:01:38]} g4 {[%emt 0:06:03]} 44. f4 {[%emt 0:00:20]} Be2 {[%emt 0:04:43]} (44... Bd3 {[%emt 0:04:22]} 45. Kh2 $1 {[%emt 0:02:26]} Bb6 {[%emt 0:00:21]}) 45. Kh2 {[%emt 0:00:30]} Bd3 $15 {[%emt 0:00:09]} 46. Kg2 {[%emt 0:02:26]} Bb6 {[%emt 0:00:30]} 47. Kh2 {[%emt 0:00:30]} Bxc7 {[%emt 0:05:55]} 48. Bxc7 {[%emt 0:00:56]} b4 {[%emt 0:00:05]} 49. a7 {[%emt 0:00:28]} Be4 {[%emt 0:00:02]} 50. Kg1 {[%emt 0:01:14]} Ke6 {[%emt 0:01:50]} 51. Kf2 {[%emt 0:01:45]} Kd7 {[%emt 0:00:07]} 52. Be5 {[%emt 0:01:17]} Kc8 {[%emt 0:00:29]} 53. Ke2 {[%emt 0:00:15]} Kb7 {[%emt 0:00:05]} 54. Kd2 {[%emt 0:00:26]} Kxa7 {[%emt 0:00:46]} 55. Bd6 {[%emt 0:00:20]} b3 {[%emt 0:00:15]} 56. Kc3 {[%emt 0:00:09]} Bc2 {[%emt 0:00:05]} 57. Kb2 {[%emt 0:00:11]} Kb6 {[%emt 0:00:06]} 58. Be7 {[%emt 0:00:06]} Kc6 {[%emt 0:03:56]} 59. Bh4 {[%emt 0:00:14]} Kd5 {[%emt 0:00:12]} 60. Bg5 {[%emt 0:00:54]} Ke4 {[%emt 0:00:07]} 61. Bh4 {[%emt 0:01:52]} Ke3 {[%emt 0:00:00]} 62. Bg5 {[%emt 0:00:00]} Bd1 {[%emt 0:00:00]} 63. Bh4 {[%emt 0:00:00]} Ke4 1/2-1/2

[Event "IIFL Wealth  4th Mumbai Junior U-13"]
[Site "Mumbai"]
[Date "2019.01.01"]
[Round "3"]
[White "Shravan Swaminathan"]
[Black "Garv Rai"]
[Result "1/2-1/2"]
[ECO "A45"]
[WhiteElo "1488"]
[BlackElo "1772"]
[Annotator "NA RC"]
[PlyCount "137"]
[EventDate "2018.12.30"]
[EventType "swiss"]
[EventCountry "IND"]
[SourceTitle "playchess.com"]
[Source "ChessBase"]
[SourceQuality "1"]
[TimeControl "40/5400+30:1800+30"]

1. d4 {[%emt 0:00:00]} Nf6 {[%emt 0:00:00]} 2. Bf4 {[%emt 0:00:00]} c5 {[%emt 0:01:00]} 3. e3 {[%emt 0:07:55]} Qb6 {[%emt 0:02:07]} 4. Nc3 {[%emt 0:04:23]} e6 {[%emt 0:13:29]} 5. Nb5 {[%emt 0:23:03]} Nd5 {[%emt 0:02:26]} 6. dxc5 {[%emt 0:15:31]} Bxc5 {[%emt 0:07:05]} 7. Bg3 {[%emt 0:09:14]} a6 {[%emt 0:02:45]} 8. e4 {[%emt 0:00:51]} Nf4 {[%emt 0:11:46]} 9. Nh3 {[%emt 0:13:28]} Nxg2+ {[%emt 0:27:56]} 10. Bxg2 {[%emt 0:00:02]} Qxb5 {[%emt 0:03:04]} 11. Qe2 {[%emt 0:00:17]} Qxe2+ {[%emt 0:00:19]} 12. Kxe2 {[%emt 0:00:05]} Nc6 {[%emt 0:00:07]} 13. c3 {[%emt 0:00:07]} O-O {[%emt 0:00:21]} 14. Rad1 {[%emt 0:00:18]} Re8 {[%emt 0:02:24]} 15. Bd6 {[%emt 0:00:18]} Bxd6 {[%emt 0:01:44]} 16. Rxd6 {[%emt 0:00:04]} Ne5 {[%emt 0:00:44]} 17. b3 {[%emt 0:00:15]} f6 {[%emt 0:00:52]} 18. Rhd1 {[%emt 0:01:18]} Nf7 {[%emt 0:00:24]} 19. Rb6 {[%emt 0:03:43]} Rb8 {[%emt 0:03:54]} 20. Ke3 {[%emt 0:02:27]} d6 {[%emt 0:01:46]} 21. Nf4 {[%emt 0:04:09]} Bd7 {[%emt 0:03:07]} 22. Bf1 {[%emt 0:01:00]} Kf8 {[%emt 0:01:40]} 23. Bc4 {[%emt 0:02:09]} g5 {[%emt 0:01:13]} 24. Ng2 {[%emt 0:03:38]} Ke7 {[%emt 0:01:05]} 25. Be2 {[%emt 0:00:40]} Rec8 {[%emt 0:01:07]} 26. Kd2 {[%emt 0:07:08]} Rc6 {[%emt 0:00:31]} 27. Rb4 {[%emt 0:00:35]} a5 {[%emt 0:03:25]} 28. Rd4 {[%emt 0:00:09]} Rbc8 {[%emt 0:00:37]} 29. c4 {[%emt 0:00:45]} b6 {[%emt 0:01:42]} 30. Ke3 {[%emt 0:00:16]} h6 {[%emt 0:01:55]} 31. Bh5 {[%emt 0:00:32]} Be8 {[%emt 0:00:54]} 32. f4 {[%emt 0:00:59]} e5 {[%emt 0:02:08]} 33. fxe5 {[%emt 0:00:22]} fxe5 {[%emt 0:00:02]} 34. R4d3 {[%emt 0:00:16]} Rd8 {[%emt 0:00:54]} 35. Ke2 {[%emt 0:00:36]} Nh8 {[%emt 0:00:31]} 36. Bf3 {[%emt 0:00:54]} Ng6 {[%emt 0:00:06]} 37. Bh5 {[%emt 0:00:22]} Nf4+ {[%emt 0:01:04]} 38. Nxf4 {[%emt 0:00:02]} gxf4 {[%emt 0:00:05]} 39. Bxe8 {[%emt 0:00:33]} Rxe8 {[%emt 0:00:22]} 40. Rh3 {[%emt 0:00:00]} Rh8 {[%emt 0:00:00]} 41. Rg1 {[%emt 0:00:37]} Rcc8 {[%emt 0:08:15]} 42. Rg7+ {[%emt 0:07:12]} Kf6 {[%emt 0:01:55]} 43. Rb7 {[%emt 0:02:47]} Rc6 {[%emt 0:00:41]} 44. Rh5 {[%emt 0:00:57]} Kg6 {[%emt 0:01:46]} 45. Rf5 {[%emt 0:06:22]} Rh7 {[%emt 0:00:59]} 46. Rb8 {[%emt 0:05:30]} Rf7 {[%emt 0:00:59]} 47. Rxf7 {[%emt 0:02:21]} Kxf7 {[%emt 0:00:02]} 48. a4 {[%emt 0:00:13]} Kg6 {[%emt 0:00:30]} 49. Kf3 {[%emt 0:04:00]} Kg5 {[%emt 0:01:11]} 50. Rh8 {[%emt 0:03:34]} h5 {[%emt 0:02:04]} 51. Kg2 {[%emt 0:01:16]} Rc7 {[%emt 0:03:32]} 52. Rf8 {[%emt 0:00:45]} Kh4 {[%emt 0:01:26]} 53. Rg8 {[%emt 0:01:28]} Rc5 54. Rg6 {[%emt 0:00:38]} Rc6 {[%emt 0:08:38]} 55. Rg7 {[%emt 0:00:43]} Rc8 {[%emt 0:00:45]} 56. Rg6 {[%emt 0:00:19]} Rd8 {[%emt 0:01:51]} 57. Rg7 {[%emt 0:00:40]} Rc8 {[%emt 0:02:32]} 58. Rg6 {[%emt 0:00:24]} Rc6 {[%emt 0:00:09]} 59. Rg7 {[%emt 0:00:43]} Rc8 {[%emt 0:00:47]} 60. Rg6 {[%emt 0:00:07]} Rd8 {[%emt 0:00:04]} 61. Rg7 {[%emt 0:00:27]} Rc8 {[%emt 0:03:51]} 62. Rg6 {[%emt 0:00:06]} Rc6 {[%emt 0:00:26]} 63. Rg7 {[%emt 0:00:07]} Rc8 {[%emt 0:00:39]} 64. Rg6 {[%emt 0:00:05]} Rd8 {[%emt 0:00:07]} 65. Rg7 {[%emt 0:00:08]} Rf8 66. Rg6 f3+ 67. Kf2 Rf4 68. Rxd6 Rxe4 69. Kxf3 1/2-1/2

[Event "IIFL Wealth  4th Mumbai Junior U-13"]
[Site "Mumbai"]
[Date "2019.01.01"]
[Round "3"]
[White "Raghu Ram Reddy Seelam"]
[Black "Dabhade Arnav"]
[Result "1-0"]
[ECO "C54"]
[WhiteElo "1472"]
[BlackElo "1064"]
[Annotator "NA RC"]
[PlyCount "121"]
[EventDate "2018.12.30"]
[EventType "swiss"]
[EventCountry "IND"]
[SourceTitle "playchess.com"]
[Source "ChessBase"]
[SourceQuality "1"]
[TimeControl "40/5400+30:1800+30"]

1. e4 e5 2. Nf3 Nc6 3. Bc4 Bc5 4. c3 Nf6 5. d3 h6 6. O-O O-O 7. d4 exd4 8. cxd4 Bb6 9. d5 Ne7 10. e5 Nh7 11. d6 Nc6 12. Nc3 cxd6 13. Qxd6 Bc7 14. Qd5 a6 15. a4 b6 16. Bf4 Bb7 17. Qd2 Re8 18. Rfd1 Nf8 19. Re1 Ng6 20. Bd5 Qb8 21. Bb3 Qd8 22. Bd5 Qb8 23. Bb3 Qd8 24. Rad1 Bc8 25. Bg3 Ncxe5 26. Nxe5 Bxe5 27. Bxe5 Nxe5 28. Qd5 Rb8 29. Rxe5 Rxe5 30. Qxe5 Bb7 31. Bd5 Bxd5 32. Qxd5 d6 33. Qxd6 Qxd6 34. Rxd6 f6 35. Nd5 b5 36. Rxa6 bxa4 37. Rxa4 Rxb2 38. g3 Kf7 39. Nf4 g5 40. Ra7+ Kf8 41. Nh5 Rb1+ 42. Kg2 Rb6 43. g4 Kg8 44. Rg7+ Kf8 45. Rg6 Kf7 46. Rxh6 Rc6 47. Rxf6+ Rxf6 48. Nxf6 Kxf6 49. Kg3 Ke5 50. h4 gxh4+ 51. Kxh4 Kf4 52. g5 Kf3 53. g6 Kxf2 54. g7 Ke3 55. g8=Q Ke4 56. Qc4+ Ke5 57. Kg5 Kd6 58. Kf6 Kd7 59. Ke5 Kd8 60. Kd6 Ke8 61. Qg8# 1-0